Workbook

Sheet Comp. sym à phaseurs
B1: 0.1912087299 | C1: -8.525805418
B2: 0.1912087299 | C2: -8.525805418 | K2: 2 | Q2: Méthode d'obtention des phaseurs initaux à partir des composantes symétriques composante homopolaire
B3: 0.1912087299 | C3: -8.525805418
A4: Homopolaire | B4: Ampl | C4: Angle | E4: 0.01
B5: 0.1912087299 | C5: -8.525805418 | D5: 0 | E5: 1 | F5: =E5*(D5*G15-IF(D5>0,0,E4*SIN(C5*PI()/180))) -> 0.001482548385 | G5: =E5*($B5*COS($C5/180*PI())+F5) -> 0.1905782672 | H5: =E5*(D5*I15+IF(D5>0,0,E4*COS(C5*PI()/180))) -> 0.009889491912 | I5: =E5*($B5*SIN($C5/180*PI())+H5) -> -0.01845812746 | K5: 0 | L5: 0 | M5: =G8*$K5 -> 0 | N5: 0 | O5: =I8*$K5 -> 0
B6: 0.1912087299 | C6: -8.525805418 | D6: 0 | E6: 1 | F6: =E6*D6*G16 -> 0 | G6: =E6*($B6*COS($C6/180*PI())+F6) -> 0.1890957188 | H6: =E6*D6*I16 -> 0 | I6: =E6*($B6*SIN($C6/180*PI())+H6) -> -0.02834761937 | J6: =1/INT(SQRT(G6^2+I6^2)/0.1) -> 1 | K6: 0 | L6: 0 | M6: =G9*$K6 -> 0 | N6: 0 | O6: =I9*$K6 -> 0
B7: 0.1912087299 | C7: -8.525805418 | D7: 0 | E7: 1 | F7: =E7*(D7*G17+IF(D7>0,0,E4*SIN(C5*PI()/180))) -> -0.001482548385 | G7: =E7*($B7*COS($C7/180*PI())+F7) -> 0.1876131704 | H7: =E7*(D7*I17-IF(D7>0,0,E4*COS(C5*PI()/180))) -> -0.009889491912 | I7: =E7*($B7*SIN($C7/180*PI())+H7) -> -0.03823711128 | K7: 0 | L7: 0 | M7: 0 | N7: 0 | O7: 0 | Q7: =IF($K$2=1,"ð","") -> 
G8: 0.9961946981 | I8: 0.06356145681
G9: -0.2736161147 | I9: -0.7517540966
G10: -0.1552914271 | I10: 0.5795554958 | Q10: =IF($K$2=2,"ð","") -> ð
B11: 0.09389998051 | C11: 78.18046433
B12: 0.09389998051 | C12: 198.1804643
B13: 0.09389998051 | C13: 318.1804643 | Q13: =IF($K$2=3,"ð","") -> 
A14: Inverse | B14: Ampl | C14: Angle
B15: 0.09389998051 | C15: 78.18046433 | D15: 0 | E15: 1 | F15: =E15*D15*G25 -> 0 | G15: =E15*($B15*COS($C15/180*PI())+F15) -> 0.01923351388 | H15: =E15*D15*I25 -> 0 | I15: =E15*($B15*SIN($C15/180*PI())) -> 0.09190907618
B16: 0.09389998051 | C16: 198.1804643 | D16: 0 | E16: 1 | F16: =E16*D16*G26 -> 0 | G16: =E16*($B16*COS($C16/180*PI())+F16) -> -0.08921235175 | H16: =E16*D16*I26 -> 0 | I16: =E16*($B16*SIN($C16/180*PI())+H16) -> -0.02929782647 | Q16: =IF($K$2=4,"ð","") -> 
B17: 0.09389998051 | C17: 318.1804643 | D17: 0 | E17: 1 | F17: =E17*D17*G27 -> 0 | G17: =E17*($B17*COS($C17/180*PI())+F17) -> 0.06997883787 | H17: =E17*D17*I27 -> 0 | I17: =E17*($B17*SIN($C17/180*PI())+H17) -> -0.06261124971
Q18: =IF($K$2=5,"ð","") -> 
B21: 0.7882186765 | C21: 1.71532978
B22: 0.7882186765 | C22: 241.7153298
B23: 0.7882186765 | C23: 121.7153298
A24: Directe | B24: Ampl | C24: Angle
B25: 0.7882186765 | C25: 1.71532978 | E25: 1 | F25: 0 | G25: =IF(E25=2,G8,E25*$B25*COS($C25/180*PI())) -> 0.7878654654 | H25: 0 | I25: =IF(E25=2,I8,E25*$B25*SIN($C25/180*PI())) -> 0.02359428594
B26: 0.7882186765 | C26: 241.7153298 | E26: 1 | F26: 0 | G26: =IF(E26=2,G9,E26*($B26*COS($C26/180*PI())+F26)) -> -0.3734994817 | H26: 0 | I26: =IF(E26=2,I9,E26*($B26*SIN($C26/180*PI())+H26)) -> -0.6941086508
B27: 0.7882186765 | C27: 121.7153298 | E27: 1 | F27: 0 | G27: =IF(E27=2,G10,E27*($B27*COS($C27/180*PI())+F27)) -> -0.4143659837 | H27: 0 | I27: =IF(E27=2,I10,E27*($B27*SIN($C27/180*PI())+H27)) -> 0.6705143649
